bitfinex/quotes_ETHUSD_20260126
["timestamp","ask_amount","ask_price","bid_price","bid_amount"]
[1769410047952,7.22572975,2888.0,2886.3,0.86615509]
[1769410048147,7.22572975,2887.8,2886.3,0.86615509]
[1769410048365,7.22572975,2887.8,2886.4,0.86612412]
[1769410048553,7.22572975,2887.8,2886.3,8.31464686]
[1769410049054,7.22572975,2887.8,2886.3,7.44848604]
[1769410049254,7.22572975,2887.6,2886.4,0.83783608]
[1769410050980,7.22572975,2887.6,2886.6,0.06269811]
[1769410051186,0.72257298,2887.7,2886.6,7.44848604]
[1769410051388,0.04328704,2887.7,2886.6,7.44848604]
[1769410051678,7.26901679,2887.7,2886.4,0.90053419]
[1769410051884,7.22572975,2887.7,2886.4,8.34902023]
[1769410052183,0.04328854,2887.6,2886.4,8.34902023]
[1769410052589,0.04328854,2887.6,2886.4,9.21514962]
[1769410052754,0.04328854,2887.6,2886.5,0.92151496]
[1769410055284,0.04328854,2887.6,2886.7,7.34589032]
[1769410055486,7.25761863,2889.0,2886.7,7.34589032]
[1769410055487,8.26911274,2888.6,2886.7,7.34589032]
[1769410055683,7.40364158,2888.4,2886.9,7.34589032]
[1769410055986,7.40364158,2888.4,2887.0,0.01245957]
[1769410056160,7.40364158,2888.2,2887.0,0.74829456]
[1769410056360,0.04328104,2888.1,2887.0,0.73583499]
[1769410056561,7.40364158,2888.0,2887.0,0.73583499]
[1769410056756,8.14400574,2888.3,2887.0,8.08172531]
[1769410056962,7.40364158,2888.6,2887.0,8.08172531]
[1769410057359,7.40364158,2888.6,2887.2,7.34589032]
[1769410057976,0.002,2888.7,2887.2,7.34589032]
[1769410057977,0.04327505,2888.5,2887.2,7.34589032]
[1769410058285,0.002,2888.7,2887.2,7.34589032]
[1769410059488,0.002,2888.7,2887.4,7.34589032]
[1769410059691,0.002,2888.7,2887.6,7.34589032]
[1769410060966,0.002,2888.9,2887.8,7.34589032]
[1769410061180,0.002,2889.1,2887.9,7.40858843]
[1769410061580,0.002,2889.1,2888.1,7.34589032]
[1769410064286,0.002,2889.1,2888.3,7.34589032]
[1769410064492,0.002,2889.1,2888.4,7.78997068]
[1769410064882,0.002,2889.1,2888.4,0.44408036]
[1769410065187,0.002,2889.1,2888.2,0.86559102]
[1769410066402,0.002,2889.1,2888.2,7.36321757]
[1769410066603,0.002,2889.1,2888.2,7.34589032]
[1769410067900,0.002,2889.1,2888.3,0.01726801]
[1769410068493,0.002,2889.1,2888.4,8.2114214]
[1769410068693,0.002,2889.1,2888.5,0.82286894]
[1769410069274,0.002,2888.9,2888.5,0.82286894]
[1769410070709,0.002,2888.9,2888.5,0.84019319]
[1769410070875,0.00100096,2889.9,2888.5,9.05157007]
[1769410071204,7.40464254,2889.9,2888.5,9.03424582]
[1769410071375,7.40364158,2889.7,2888.6,0.35704641]
[1769410071577,7.40364158,2889.7,2888.6,7.70293673]
[1769410071907,7.40364158,2889.7,2888.6,0.35704641]
[1769410074183,7.40364158,2889.5,2888.5,0.82286894]
[1769410074383,7.40364158,2889.3,2888.1,10.80836768]
[1769410074595,7.40364158,2889.3,2888.3,0.86555696]
[1769410074996,7.40364158,2889.3,2888.2,0.86558072]
[1769410075311,7.40364158,2889.8,2888.1,7.34589032]
[1769410075512,7.40364158,2889.6,2888.3,7.34589032]
[1769410076083,7.40364158,2889.6,2888.4,0.01731885]
[1769410077587,7.40364158,2889.6,2888.4,0.88282292]
[1769410078816,7.40364158,2889.6,2888.4,0.01731885]
[1769410079190,0.00100096,2889.9,2888.2,4.54320926]
[1769410079191,7.40364158,2889.4,2888.2,1.0808483]
[1769410079388,0.04326307,2889.3,2888.2,1.0808483]
[1769410079592,7.40364158,2889.2,2888.2,1.09817315]
[1769410079993,7.40364158,2889.2,2888.1,0.01732605]
[1769410080238,7.40364158,2889.0,2887.5,0.86578241]
[1769410080390,0.06269811,2889.1,2887.2,0.001]
[1769410080391,7.40364158,2888.8,2887.2,0.001]
[1769410080886,7.40364158,2888.8,2887.6,0.86576161]
[1769410081123,7.40364158,2888.8,2887.7,0.86573874]
[1769410081324,7.40364158,2888.8,2887.6,0.88309119]
[1769410081545,7.25761863,2889.5,2888.4,0.001]
[1769410081546,7.40364158,2889.5,2888.4,0.001]
[1769410081832,7.40364158,2889.3,2888.4,0.001]
[1769410082130,7.40364158,2889.1,2888.4,0.001]
[1769410084119,7.40713158,2889.1,2888.4,0.001]
[1769410084619,0.00349,2889.1,2888.4,7.42750048]
[1769410084916,0.00349,2889.1,2888.5,8.15193227]
[1769410085314,0.00349,2889.1,2888.5,0.74275005]
[1769410085621,0.00349,2889.1,2888.4,0.001]
[1769410089838,0.00349,2889.1,2888.4,0.01832365]
[1769410091611,0.00349,2889.1,2888.4,0.88384706]
[1769410091810,7.34862885,2889.1,2888.4,0.88384706]
[1769410092324,7.34862885,2889.1,2887.9,0.8656802]
[1769410092528,7.34513885,2888.9,2887.9,0.51515094]
[1769410092729,7.34513885,2888.9,2887.2,10.87374122]
[1769410093049,7.34513885,2888.9,2887.7,7.40918222]
[1769410093402,7.34513885,2888.9,2888.6,0.001]
[1769410096505,0.00349,2889.1,2888.6,0.001]
[1769410101555,6.74264508,2889.1,2888.6,0.001]
[1769410104928,0.002,2888.9,2888.6,0.001]
[1769410105442,6.73915508,2888.8,2887.6,10.56893898]
[1769410105646,6.73915508,2888.8,2887.8,0.86568356]
[1769410105845,6.73915508,2888.8,2887.7,0.34630032]
[1769410105846,0.002,2888.9,2888.1,6.78893898]
[1769410108230,0.002,2888.9,2888.2,0.86559102]
[1769410109464,0.002,2888.9,2888.3,6.78893898]
[1769410109632,0.002,2888.9,2888.5,6.78893898]
[1769410109836,0.00549,2889.1,2888.5,6.78893898]
[1769410110335,0.00549,2889.1,2888.5,7.65443337]
[1769410110531,0.00549,2889.1,2888.5,6.78893898]
[1769410110765,0.00549,2889.1,2888.4,0.765453]
[1769410110962,0.00549,2889.1,2888.5,0.89560696]
[1769410113578,0.00549,2889.1,2888.5,1.76108181]
[1769410113950,0.00549,2889.1,2888.5,7.44699429]
[1769410116139,0.00549,2889.1,2888.4,0.86551621]
[1769410116645,0.00549,2889.1,2888.5,6.58151944]
[1769410116841,0.002,2888.9,2888.5,6.58151944]
[1769410117150,0.002,2888.9,2888.5,7.44702026]
[1769410117345,0.002,2888.9,2888.6,0.74470203]
[1769410118342,0.002,2888.9,2888.3,0.86555823]
[1769410118764,0.002,2888.9,2888.4,0.86552533]
[1769410119281,0.002,2888.9,2888.3,0.86554448]
[1769410119458,0.002,2888.9,2888.4,0.86552053]
[1769410119646,0.002,2888.9,2888.3,0.86556105]
[1769410119964,0.002,2888.9,2888.4,1.09094212]
[1769410121786,0.002,2888.9,2888.4,8.53798993]
[1769410124779,0.002,2888.9,2888.4,1.09094212]
[1769410128260,0.002,2888.9,2888.4,1.95645607]
[1769410128460,0.002,2888.9,2888.6,0.001]
[1769410128662,0.002,2888.9,2888.6,0.19674561]
[1769410131688,0.001,2888.9,2888.6,0.19674561]
[1769410132287,1.93e-06,2888.9,2888.6,0.19674561]
[1769410138407,0.86608555,2889.9,2888.6,0.19674561]
[1769410138408,0.00100096,2889.9,2889.1,7.72521078]
[1769410138705,6.79208721,2889.7,2888.6,1.78721416]
[1769410139003,6.79208721,2889.8,2888.7,6.47793953]
[1769410139202,6.79208721,2889.8,2889.0,6.47793953]
[1769410139604,0.00100096,2889.9,2889.1,6.58151944]
[1769410140208,0.00100096,2889.9,2889.1,7.44683886]
[1769410140410,6.79308817,2889.9,2889.2,1.39247784]
[1769410140592,0.00100096,2889.9,2889.4,6.58151944]
[1769410142202,0.00100096,2889.9,2888.3,6.58151944]
[1769410142203,6.79208721,2889.5,2888.3,6.58151944]
[1769410142507,6.79208721,2889.5,2888.4,1.59053108]
[1769410142715,6.79208721,2889.5,2888.3,10.04364379]
[1769410142716,6.79208721,2889.2,2888.3,0.86554665]
[1769410142919,8.11908988,2889.1,2888.3,0.86554665]
[1769410143080,6.79208721,2889.1,2888.3,0.86554665]
[1769410143417,0.06269811,2889.7,2887.8,0.86570599]
[1769410143418,6.39521548,2888.6,2887.8,0.86570599]
[1769410143597,6.39521548,2888.6,2887.7,0.8657217]
[1769410144112,6.14521548,2888.6,2887.7,0.8657217]
[1769410144488,6.14521548,2888.6,2887.6,0.86577088]
[1769410144696,6.14521548,2888.6,2887.7,0.50539638]
[1769410147115,6.14521548,2888.6,2887.6,0.86575074]
[1769410147295,6.14521548,2888.6,2887.4,0.86580629]
[1769410147996,6.14521548,2888.6,2887.2,0.001]
[1769410148415,6.14521548,2888.6,2887.2,0.86688235]
[1769410148610,6.14521548,2888.6,2887.2,0.001]
[1769410148820,0.61452155,2888.5,2887.2,0.001]
[1769410149136,6.39521548,2888.4,2887.2,0.001]
[1769410150530,6.39521548,2889.0,2887.2,6.00274531]
[1769410150724,6.43848304,2889.0,2887.2,6.00274531]
[1769410151102,6.43848304,2889.0,2887.3,0.86586083]
[1769410151314,6.39521548,2888.8,2887.4,7.03495026]
[1769410151709,6.39521548,2888.8,2887.4,1.03320495]
[1769410152035,6.39521548,2888.8,2887.4,6.00274531]
[1769410152537,6.39721548,2888.8,2887.4,6.00274531]
[1769410153536,6.39721548,2888.8,2887.5,0.86580086]
[1769410153733,6.39721548,2888.8,2887.5,6.86754617]
[1769410155506,6.39521548,2888.6,2887.4,0.001]
[1769410155714,6.39521548,2888.4,2887.4,0.001]
[1769410156809,6.43849203,2888.4,2887.4,0.001]
[1769410165016,6.43849203,2888.4,2887.6,0.001]
[1769410165621,5.91133882,2888.0,2887.6,0.001]
[1769410166358,5.95462136,2888.0,2887.6,0.001]
[1769410166544,5.91133882,2888.0,2887.6,0.001]
[1769410169344,7.15529965,2888.0,2887.6,0.001]
[1769410172754,5.91133882,2888.0,2887.6,0.001]
[1769410172965,5.91133882,2888.4,2887.6,0.001]
[1769410173174,5.95461537,2888.4,2887.6,0.001]
[1769410173778,6.48498842,2888.2,2887.6,0.001]
[1769410174076,5.62019937,2888.1,2887.6,0.001]
[1769410175190,5.57691833,2888.1,2887.6,0.001]
[1769410179182,5.57691833,2887.8,2887.4,0.001]
[1769410179386,5.62020387,2887.8,2887.4,0.001]
[1769410179692,5.57691833,2887.5,2886.7,0.001]
[1769410179851,6.48498842,2887.3,2886.7,0.001]
[1769410180786,5.57691833,2887.4,2886.7,0.001]
[1769410181149,12.06190675,2887.6,2886.7,0.001]
[1769410181354,5.57691833,2887.5,2886.7,0.001]
[1769410182052,5.57691833,2888.3,2886.9,6.48498842]
[1769410182253,6.30191833,2888.3,2887.0,5.94742411]
[1769410182484,5.57691833,2888.1,2887.0,5.94742411]
[1769410182682,5.57691833,2887.9,2887.0,6.54216652]
[1769410182852,0.71135638,2888.7,2887.1,5.94742411]
[1769410183052,5.57691833,2889.5,2888.3,5.94742411]
[1769410183279,5.57691833,2889.8,2888.4,7.19066536]
[1769410184149,5.57691833,2889.8,2888.5,6.81292523]
[1769410184582,0.04325708,2889.7,2888.5,5.94742411]
[1769410184790,5.62017541,2889.7,2888.5,5.94742411]
[1769410185455,5.62017541,2889.7,2888.4,1.24324125]
[1769410185656,6.18229305,2889.7,2888.4,1.24324125]
[1769410187689,5.57691833,2889.6,2888.4,1.24324125]
[1769410187857,5.57691833,2889.4,2888.0,0.86562821]
[1769410188061,1.42727187,2889.7,2888.0,6.81307507]
[1769410188062,5.57691833,2889.2,2888.0,6.81307507]
[1769410189885,5.57691833,2889.2,2888.0,0.86565096]
[1769410190393,0.002,2889.6,2888.1,5.94742411]
[1769410190554,0.002,2889.6,2888.3,5.94742411]
[1769410192260,0.002,2889.6,2888.5,5.94742411]
[1769410194677,0.002,2889.6,2888.5,6.812907]
[1769410198299,0.002,2889.6,2888.5,5.94742411]
[1769410198465,5.62217691,2889.6,2888.5,5.94742411]
[1769410198664,5.62217691,2889.6,2888.6,0.59474241]
[1769410200462,5.57891833,2889.6,2888.6,1.46020667]
[1769410200668,0.002,2889.4,2888.6,7.40763078]
[1769410201518,0.002,2889.8,2888.7,5.94742411]
[1769410202987,0.002,2889.8,2888.8,0.86541124]
[1769410203307,0.002,2889.8,2888.9,6.62174753]
[1769410203999,0.00100096,2889.9,2888.9,6.62174753]
[1769410204000,0.00100096,2889.9,2889.1,5.57671599]
[1769410204197,0.00100096,2889.9,2889.0,3.78]
[1769410204198,0.002,2890.2,2889.3,5.57671599]
[1769410205211,0.002,2890.2,2889.5,5.57671599]
[1769410207001,0.002,2890.3,2889.5,5.57671599]
[1769410207212,10.0671719,2891.1,2889.8,5.57671599]
[1769410207416,5.39447083,2891.4,2889.8,5.57671599]
[1769410208494,5.43770248,2891.4,2889.8,5.57671599]
[1769410209093,5.43770248,2891.4,2890.0,5.57671599]
[1769410209277,5.43770248,2891.4,2890.2,5.57671599]
[1769410209618,5.43770248,2891.4,2890.4,5.57671599]
[1769410212228,5.43770248,2891.4,2890.4,6.44164124]
[1769410212628,5.43770248,2891.4,2890.4,5.57671599]
[1769410213030,0.002,2891.2,2890.4,6.44164775]
[1769410213402,0.002,2891.2,2890.4,5.57671599]
[1769410213626,0.002,2891.2,2890.5,0.67600699]
[1769410215622,5.39447083,2891.1,2890.5,0.67600699]
[1769410215921,0.002,2891.2,2890.5,0.67600699]
[1769410215922,5.43770846,2891.0,2890.5,0.67600699]
[1769410216118,0.002,2891.2,2890.5,0.67600699]
[1769410216319,5.43970547,2891.2,2890.5,0.67600699]
[1769410217423,5.39647083,2891.2,2890.5,0.67600699]
[1769410217620,0.04323613,2891.1,2890.3,4.4101716]
[1769410217800,5.39350511,2891.0,2890.3,5.27513085]
[1769410218726,5.39550511,2891.2,2890.3,5.27513085]
[1769410219102,0.002,2891.2,2890.4,5.36853397]
[1769410219314,0.04523464,2891.2,2890.5,1.06436648]
[1769410219917,0.002,2891.2,2890.5,1.06436648]
[1769410221230,5.39550511,2891.2,2890.5,1.06436648]
[1769410221411,5.39550511,2891.2,2890.2,10.73850525]
[1769410221610,5.39550511,2891.2,2890.3,0.86496145]
[1769410222537,5.39550511,2891.2,2890.3,6.23349542]
[1769410223042,0.002,2891.2,2890.3,6.23349542]
[1769410223411,0.002,2891.4,2890.3,6.23349542]
[1769410223617,0.002,2891.4,2890.5,6.2334225]
[1769410223815,0.002,2891.4,2890.5,5.36853397]
[1769410224648,0.002,2891.4,2890.4,1.04183729]
[1769410224649,5.39550511,2891.4,2890.4,1.04183729]
[1769410224853,5.39350511,2891.2,2890.4,1.04183729]
[1769410225010,5.39550511,2891.4,2890.4,0.86490348]
[1769410225217,5.43873676,2891.4,2890.4,6.23343745]
[1769410225420,5.43873676,2891.4,2890.5,0.001]
[1769410225656,5.43873676,2891.4,2890.5,6.46911447]
[1769410225854,5.43873676,2891.4,2890.6,1.27025519]
[1769410226838,5.43873676,2891.4,2890.5,0.001]
[1769410227857,5.39550511,2891.4,2890.5,0.001]
[1769410228556,5.39550511,2891.4,2889.9,0.8650787]
[1769410228557,5.39350511,2891.1,2889.9,0.8650787]
[1769410228757,5.39350511,2890.9,2889.9,7.33319317]
[1769410229159,5.39350511,2890.9,2889.9,12.70172714]
[1769410230223,5.39350511,2891.3,2890.2,6.46811447]
[1769410230530,5.39350511,2891.3,2890.3,5.36853397]
[1769410231061,5.39350511,2891.3,2890.5,6.46811447]
[1769410233671,0.04523165,2891.4,2890.5,6.46811447]
[1769410234171,5.24412492,2891.4,2890.5,6.46811447]
[1769410234477,5.24412492,2891.4,2890.6,0.64681145]
[1769410236265,5.20089327,2891.4,2890.6,0.64681145]
[1769410237768,0.002,2891.1,2890.6,0.64681145]
[1769410238843,0.002,2891.1,2890.6,5.70774191]
[1769410239044,0.00100289,2891.3,2890.6,5.70774191]
[1769410239368,0.00100289,2891.3,2890.7,1.21768564]
[1769410240839,5.19989616,2891.3,2890.7,1.21768564]
[1769410241983,0.00100289,2891.3,2890.7,1.21768564]
[1769410243842,5.19989616,2891.3,2890.7,1.21768564]
[1769410245770,5.19989616,2891.3,2890.5,6.46911447]
[1769410246147,5.19989616,2891.3,2889.8,3.52311294]
[1769410246148,5.19889327,2891.1,2889.8,0.86508923]
[1769410246347,5.19889327,2891.1,2889.9,6.46811447]
[1769410246945,5.19889327,2891.1,2889.7,0.001]
[1769410247447,5.19889327,2891.1,2889.9,6.46811447]
[1769410247852,5.19889327,2891.0,2889.7,0.001]
[1769410248056,5.19889327,2890.8,2889.7,0.001]
[1769410249194,5.19889327,2890.8,2889.8,11.52904493]
[1769410249786,5.19889327,2890.8,2889.9,0.001]
[1769410252483,5.19889327,2891.0,2889.9,5.06193046]
[1769410252896,0.002,2891.2,2889.9,5.06193046]
[1769410253190,5.71908289,2891.1,2889.9,0.001]
[1769410253566,5.19889327,2890.9,2889.9,0.001]
[1769410253990,5.19889327,2890.9,2889.9,5.06193046]
[1769410257184,5.20089327,2891.2,2889.9,5.9270081]
[1769410257364,0.04323613,2891.1,2889.9,5.9270081]
[1769410257565,0.04323613,2891.1,2890.0,5.06093046]
[1769410257763,0.002,2891.2,2890.0,5.06093046]
[1769410258409,11.66700774,2890.7,2889.9,0.001]
[1769410258609,5.19889327,2890.7,2889.9,0.001]
[1769410259397,5.72310651,2890.7,2889.9,0.001]
[1769410259596,5.19889327,2890.7,2889.9,0.001]
[1769410260810,0.04523464,2891.2,2889.9,5.06193046]
[1769410260975,5.19889327,2891.1,2889.9,5.06193046]
[1769410261165,5.19889327,2890.9,2890.0,0.724]
[1769410261365,5.19889327,2890.9,2889.9,5.06193046]
[1769410261591,5.24213239,2890.9,2890.0,0.724]
[1769410261898,5.19889327,2890.9,2889.9,0.001]
[1769410262100,5.19889327,2891.1,2890.1,0.001]
[1769410262270,0.002,2890.6,2890.1,0.001]
[1769410262600,0.00100097,2890.8,2890.2,5.06093046]
[1769410262977,0.00100097,2890.8,2890.1,0.001]
[1769410263182,5.19989424,2890.8,2890.1,0.001]
[1769410265401,0.00100097,2890.8,2890.1,0.001]
[1769410267502,0.00100097,2890.8,2890.1,4.62169899]
[1769410268076,0.00100097,2890.8,2890.2,4.62069899]
[1769410268276,0.002,2891.2,2890.4,4.62069899]
[1769410269295,0.002,2891.2,2890.2,4.62069899]
[1769410269494,4.80244308,2891.2,2890.2,4.62069899]
[1769410269800,4.80244308,2891.2,2890.2,0.724]
[1769410272607,4.80244308,2891.2,2890.1,6.46911447]
[1769410272789,4.80244308,2891.2,2890.1,11.81381346]
[1769410273399,4.80244308,2891.2,2890.1,11.08981346]
[1769410273581,4.80244308,2891.2,2890.1,11.81381346]
[1769410274003,4.80244308,2891.2,2890.1,11.08981346]
[1769410274187,4.80244308,2891.2,2890.2,0.724]
[1769410275406,4.80244308,2891.2,2890.2,5.34469899]
[1769410275589,4.80244308,2891.2,2890.3,0.001]
[1769410275790,0.002,2891.0,2890.3,0.001]
[1769410277911,4.64610916,2891.0,2890.3,0.001]
[1769410280416,0.002,2891.0,2890.3,0.001]
[1769410280601,0.002,2891.0,2890.3,4.71671166]
[1769410283216,0.002,2891.0,2890.3,0.001]
[1769410283388,4.64610916,2891.0,2890.3,0.001]
[1769410284415,4.64610916,2891.0,2890.3,0.725]
[1769410285926,4.64610916,2891.0,2890.3,0.001]
[1769410286224,0.002,2891.0,2890.4,6.46924618]
[1769410286599,0.002,2891.0,2890.3,4.71671166]
[1769410288619,0.002,2891.0,2890.5,0.001]
[1769410289128,0.002,2890.8,2890.5,0.001]
[1769410298142,4.9286432,2890.8,2890.3,0.001]
[1769410298435,4.9266432,2890.6,2890.3,0.001]
[1769410299832,1.13978894,2890.7,2890.3,0.001]
[1769410300332,4.9286432,2890.8,2890.3,0.001]
[1769410300852,0.002,2890.8,2890.3,0.001]
[1769410301339,0.002,2890.8,2890.3,4.79016261]
[1769410301636,0.002,2890.6,2890.3,4.79016261]
[1769410303206,0.002,2890.8,2890.3,4.79016261]
[1769410307034,0.002,2890.8,2890.3,0.725]
[1769410309017,0.002,2890.8,2890.3,0.001]
[1769410309235,0.002,2890.8,2890.3,0.725]
[1769410310247,0.002,2890.8,2890.3,0.001]
[1769410310445,4.9286432,2890.8,2890.3,0.001]
[1769410310638,4.9286432,2890.8,2890.3,0.725]
[1769410311317,4.9286432,2890.8,2890.3,0.001]
[1769410313124,0.002,2890.8,2890.3,4.79016261]
[1769410313759,0.002,2890.8,2890.5,0.001]
[1769410313956,0.001,2890.6,2890.5,0.001]
[1769410314252,0.00100193,2890.8,2890.5,0.001]
[1769410317456,0.002,2891.2,2890.5,0.001]
[1769410317757,4.9286432,2891.2,2890.5,0.001]
[1769410319660,4.9266432,2890.7,2890.1,0.001]
[1769410321372,4.9266432,2890.4,2889.9,0.001]
[1769410321658,4.9266432,2890.4,2889.7,0.001]
[1769410322850,4.9266432,2890.1,2889.7,0.001]
[1769410323046,6.46924618,2890.8,2889.7,0.001]
[1769410323047,11.39588938,2890.5,2889.7,0.001]
[1769410323248,4.42606999,2890.4,2889.7,0.001]
[1769410323756,4.42606999,2890.7,2889.7,4.60337528]
[1769410324333,4.42606999,2890.7,2889.7,0.001]
[1769410325465,4.42606999,2890.7,2889.9,0.001]
[1769410325767,4.42606999,2890.5,2889.9,0.001]
[1769410328444,0.002,2890.6,2889.9,0.001]
[1769410328759,0.002,2890.6,2889.9,0.725]
[1769410329062,4.42806999,2890.6,2890.0,0.03460207]
[1769410329270,4.42806999,2890.6,2889.9,0.75960207]
[1769410332649,0.002,2890.6,2890.0,4.60237528]
[1769410332846,0.001,2890.6,2890.1,4.63697495]
[1769410335150,4.25124285,2891.0,2890.1,4.63697495]
[1769410335976,4.42806999,2891.2,2890.1,4.63697495]
[1769410336180,0.002,2891.2,2890.1,4.63697495]
[1769410336348,0.002,2891.2,2890.3,4.60237528]
[1769410337247,4.60102237,2891.2,2890.3,4.60237528]
[1769410337775,0.002,2890.6,2890.3,4.60237528]
[1769410338077,4.25136422,2891.2,2890.3,4.60237528]
[1769410341352,0.00100289,2891.3,2890.3,4.60237528]
[1769410341778,4.60002526,2891.3,2890.3,4.60237528]
[1769410344489,0.00100289,2891.3,2890.3,4.60237528]
[1769410344992,4.60002526,2891.3,2890.3,4.60237528]
[1769410350087,4.60002526,2891.3,2890.5,0.001]
[1769410350968,4.60002526,2891.3,2890.5,4.57069539]
[1769410351171,0.00100289,2891.3,2890.5,4.57069539]
[1769410351481,0.00100289,2891.3,2890.6,4.56969539]
[1769410351994,0.00100289,2891.3,2890.5,0.001]
[1769410353089,4.59902237,2891.2,2890.5,0.001]
[1769410353476,0.00100289,2891.3,2890.5,0.001]
[1769410353797,4.74308683,2891.3,2890.5,0.001]
[1769410356097,4.78631997,2891.3,2890.5,0.001]
[1769410357909,0.40546269,2891.5,2891.0,0.02613348]
[1769410358206,0.40546269,2891.5,2890.6,6.46860572]
[1769410358374,0.40546269,2891.5,2890.7,0.73728741]
[1769410358564,5.2266736,2891.5,2890.7,0.01328741]
[1769410358765,5.2266736,2891.5,2890.7,0.03459369]
[1769410358997,5.2266736,2891.5,2890.6,0.03459369]
[1769410359165,5.2266736,2891.5,2890.6,0.06051358]
[1769410360469,5.2266736,2891.5,2890.3,7.07490854]
[1769410360676,5.2266736,2891.5,2890.3,7.3335497]
[1769410360872,4.84703205,2891.3,2890.0,0.02558635]
[1769410361092,4.84703205,2891.3,2890.1,0.03453937]
[1769410361480,4.84703205,2891.3,2890.5,0.001]
[1769410361679,6.02260527,2891.3,2890.5,0.001]
[1769410362280,4.84703205,2891.3,2890.5,0.001]
[1769410369393,4.84703205,2891.1,2890.5,0.001]
[1769410373327,4.84703205,2891.1,2889.9,0.001]
[1769410373328,4.84653205,2890.8,2889.9,0.001]
[1769410374191,4.84653205,2890.5,2889.9,0.001]
[1769410378317,5.97804583,2890.5,2889.9,0.001]
[1769410380240,5.97804583,2890.5,2889.1,0.03461165]
[1769410380241,4.84603205,2890.2,2889.1,0.03461165]
[1769410380443,4.84603205,2890.2,2889.0,0.03461405]
[1769410380751,6.46860572,2890.3,2888.5,0.001]
[1769410380752,4.84553205,2889.6,2888.5,0.001]
[1769410381442,0.724,2890.3,2888.5,0.001]
[1769410381443,4.84553205,2889.3,2888.5,0.001]
[1769410384249,4.84553205,2889.3,2888.5,0.23180489]
[1769410384448,4.84553205,2890.1,2889.5,0.6181376]
[1769410384750,4.84553205,2890.1,2889.6,0.03460685]
[1769410385037,1.02745319,2890.7,2889.3,0.26449437]
[1769410385038,4.84553205,2890.6,2889.3,0.26449437]
[1769410385206,4.88016376,2890.6,2889.3,0.26449437]
[1769410385607,4.88016376,2890.6,2889.3,0.03460685]
[1769410386805,4.84553205,2890.6,2889.3,0.03460685]
[1769410388412,4.84553205,2890.4,2889.3,0.03460685]
[1769410388741,4.84553205,2890.2,2889.0,14.5]
[1769410388909,4.84553205,2890.0,2888.9,6.46860572]
[1769410389528,4.84553205,2890.0,2888.7,0.22725929]
[1769410389844,6.46860572,2890.2,2888.7,0.22725929]
[1769410389845,4.84553205,2889.8,2888.7,0.22725929]
[1769410390723,4.84553205,2889.8,2888.7,0.001]
[1769410391033,4.84553205,2889.8,2888.7,0.03561764]
[1769410391536,4.84553205,2889.6,2888.7,0.001]
[1769410396236,4.84553205,2889.4,2888.7,0.001]
[1769410397646,0.09732982,2889.8,2888.9,0.001]
[1769410397647,4.84553205,2889.2,2888.9,0.001]
[1769410399930,4.84553205,2889.2,2888.7,0.001]
[1769410400458,0.06269811,2889.8,2887.8,0.001]
[1769410400459,4.84403205,2888.7,2887.8,0.001]
[1769410400766,1.13227392,2888.6,2887.8,0.001]
[1769410400930,4.84403205,2888.7,2887.8,0.001]
[1769410402172,4.84403205,2889.1,2887.8,0.21927181]
[1769410402358,4.84403205,2889.1,2888.1,0.21827181]
[1769410403527,4.84403205,2889.1,2887.9,6.47870711]
[1769410403858,4.84403205,2888.9,2887.8,0.001]
[1769410404859,4.87866376,2888.9,2887.8,0.001]
[1769410405357,5.74405211,2888.9,2887.8,0.001]
[1769410405543,4.87866376,2888.9,2887.8,0.001]
[1769410405855,4.84403205,2888.7,2887.8,0.001]
[1769410408665,4.84403205,2888.5,2887.8,0.001]
[1769410410660,4.84353205,2888.3,2886.9,0.03463803]
[1769410410962,4.84353205,2888.3,2886.7,0.03563803]
[1769410411168,4.84303205,2888.1,2886.7,0.03563803]
[1769410411673,4.84303205,2888.1,2886.7,0.25005745]
[1769410412035,4.84303205,2888.1,2886.7,0.001]
[1769410412366,4.84303205,2888.1,2886.7,0.24945851]
[1769410413072,4.84303205,2888.1,2886.7,1.11548641]
[1769410413238,4.84303205,2887.9,2886.7,0.001]
[1769410413841,4.84303205,2887.9,2886.7,0.03564163]
[1769410414266,4.84303205,2887.9,2886.7,0.001]
[1769410415270,4.84303205,2887.7,2886.7,0.001]
[1769410417364,4.84303205,2887.5,2886.7,0.001]
[1769410417564,4.84303205,2887.3,2886.7,0.001]
[1769410418972,4.84303205,2887.3,2886.2,0.001]
[1769410419271,0.86589082,2887.2,2886.2,0.001]
[1769410419447,4.84253205,2887.1,2886.2,0.001]
[1769410420985,4.84253205,2887.1,2886.2,0.03564763]
[1769410421143,5.33024843,2887.1,2886.2,0.03564763]
[1769410421569,5.33024843,2887.1,2886.2,0.001]
[1769410421962,4.84253205,2887.0,2886.2,0.001]
[1769410423848,5.70848381,2887.0,2886.2,0.001]
[1769410424051,0.03463171,2886.9,2886.4,0.001]
[1769410424251,5.33024843,2886.8,2886.4,0.001]
[1769410425581,0.03463171,2886.7,2886.4,0.001]
[1769410425884,4.87716376,2886.7,2886.2,0.001]
[1769410427265,4.87716376,2886.7,2885.9,0.001]
[1769410428688,5.74321202,2886.7,2885.9,0.001]
[1769410428880,4.84153205,2886.5,2885.9,0.001]
[1769410429082,4.84153205,2886.3,2885.9,0.001]
[1769410434395,3.46363987,2887.2,2885.9,0.001]
[1769410434396,4.84153205,2886.8,2885.9,0.001]
[1769410434597,4.84153205,2886.8,2885.9,0.14997695]
[1769410434806,5.32914843,2886.8,2885.9,0.14997695]
[1769410435084,5.32914843,2886.8,2885.9,0.001]
[1769410435253,5.32914843,2886.8,2886.1,0.001]
[1769410437199,0.48761638,2886.8,2886.1,0.001]
[1769410437898,5.32914843,2886.8,2886.1,0.001]
[1769410440065,0.03463171,2886.7,2886.1,0.001]
[1769410440587,4.87616376,2886.7,2886.1,0.001]
[1769410440912,5.36378014,2886.7,2886.1,0.001]
[1769410446593,4.84153205,2886.6,2886.1,0.001]
[1769410446791,4.84153205,2886.4,2886.1,0.001]
[1769410446990,4.87616376,2886.3,2886.1,0.001]
[1769410449485,0.03463171,2886.3,2886.1,0.001]
[1769410449684,4.87816376,2886.5,2886.1,0.001]
[1769410449883,5.97849699,2886.4,2886.1,0.001]
[1769410450112,0.03463171,2886.3,2886.1,0.001]